Cogmind - Beta 9.4 @@@ ROGUE MODE // 2020.01.27 @ 14:11:29 Player: mr roboto Result: Self-destructed Performance ------------- Evolutions (1) 500 Regions Visited (2) 400 Robots Destroyed (4) 20 Value Destroyed (149) 149 Prototype IDs (0) 0 Alien Tech Used (0) 0 Bonus (0) 0 TOTAL SCORE: 1069 Bonus ------- None Cogmind --------- Core Integrity 305/400 Matter 211/300 Energy 100/100 System Corruption 3% Temperature Cool (0) Movement Core (150) Ox2 Location -9/Materials Parts ------- > --- POWER (1) -------- (None) > --- PROPULSION (4) --- (None) > --- UTILITY (2) ------ Medium Storage Unit Terrain Scanner > --- WEAPON (2) ------- (None) > --- INVENTORY (8) ---- (None) Peak State ------------ > --- POWER ------------ Light Ion Engine > --- PROPULSION ------- Wheel Wheel > --- UTILITY ---------- Heat Sink Small Storage Unit > --- WEAPON ----------- Assault Rifle Light Cannon > --- INVENTORY -------- Light Ion Engine Assault Rifle Light Assault Rifle Hammer [Rating: 7] Favorites ----------- Power Light Ion Engine Engine Light Ion Engine Propulsion Wheel Treads Light Treads Wheel Wheel Flight Unit Flight Unit Utility Small Storage Unit Device Heat Sink Storage Small Storage Unit Weapon Assault Rifle Energy Gun Small Laser Ballistic Gun Assault Rifle Ballistic Cannon Light Cannon Launcher Grenade Launcher Build | -11 -10 -9 ------- Run | Scr Mat Mat Slots Evolved 2 | . . 2 Power . | . . . Propulsion 2 | . . 2 Utility . | . . . Weapon . | . . . Parts Attached 20 | 8 8 4 Power 3 | 1 2 . Engine 3 | 1 2 . Core . | . . . Reactor . | . . . Propulsion 6 | 4 2 . Treads 1 | 1 . . Leg . | . . . Wheel 3 | 3 . . Hover . | . . . Flight 2 | . 2 . Utility 4 | 1 2 1 Device 2 | . 1 1 Storage 2 | 1 1 . Processor . | . . . Hackware . | . . . Protection . | . . . Artifact . | . . . Weapon 7 | 2 2 3 Energy Gun 1 | . . 1 Energy Cannon . | . . . Ballistic Gun 3 | 2 . 1 Ballistic Cannon 2 | . 1 1 Launcher 1 | . 1 . Special Weapon . | . . . Impact Weapon . | . . . Slashing Weapon . | . . . Piercing Weapon . | . . . Special Melee Weapon . | . . . Unidentified Prototypes . | . . . Parts Lost 8 | . . 8 Power 1 | . . 1 Propulsion 2 | . . 2 Utility 1 | . . 1 Weapon 4 | . . 4 Highest Loss Streak 8 | . . 8 Average Slot Usage (%) 87 | . 90 71 Engine 13 | . 14 11 Wheel 21 | . 25 . Flight 4 | . 1 19 Device 6 | . 6 8 Storage 13 | . 13 11 Ballistic Gun 16 | . 19 1 Ballistic Cannon 8 | . 7 9 Launcher 2 | . . 9 Naked Turns . | . . . Heaviest Build 20 | 10 20 20 Greatest Support 20 | 20 20 8 Greatest Overweight (x) 4 | 1 2 4 Average Overweight (x) . | . . 2 Largest Inventory Capacity 8 | 6 8 8 Average Capacity 6 | 5 6 8 Most Carried 7 | 6 7 3 Average Carried 3 | 3 3 2 Final Capacity 8 | 6 8 8 Final Carried 3 | 2 3 . Class Distribution -------------------- 100% | Mutant Dominant Class ---------------- Mutant | -10/Materials Mutant | -9/Materials Resources | -11 -10 -9 ----------- Run | Scr Mat Mat Matter Collected 379 | 245 134 . Remotely . | . . . Salvage Created 95 | . 39 56 Parts 7 | . 2 5 Haulers Intercepted . | . . . Recyclers Shooed . | . . . Parts Field Recycled . | . . . Retrieved Matter . | . . . Parts Self-Destructed . | . . . Prevented . | . . . Kills | -11 -10 -9 ------- Run | Scr Mat Mat Combat Hostiles Destroyed 2 | . 1 1 Cannons 1 | . 1 . AOE 1 | . . 1 Classes Destroyed 3 | . 1 2 Builder 1 | . . 1 Watcher 1 | . . 1 Grunt 2 | . 1 1 Best Kill Streak 3 | . 1 3 Combat Bots Only 1 | . 1 1 Max Kills in Single Turn 1 | . 1 1 Gunslinging . | . . . Exploded 1 | . . 1 Melee . | . . . Uniques/NPCs Destroyed . | . . . Combat | -11 -10 -9 -------- Run | Scr Mat Mat Damage Taken 814 | . 103 711 Core 135 | . 40 95 Absorbed by Shields . | . . . Core Remaining (%) 92 | 100 84 . Volleys Fired 17 | . 9 8 Largest 2 | . 2 2 Hottest 65 | . 55 65 Shots Fired 29 | . 15 14 Gun 13 | . 9 4 Cannon 12 | . 6 6 Launcher 4 | . . 4 Special . | . . . Kinetic 23 | . 15 8 Thermal 2 | . . 2 Explosive 4 | . . 4 Electromagnetic . | . . . Robot Hit Streak 5 | . 2 5 Robot Miss Streak 4 | . 4 1 Penetration Max . | . . . Secondary Targets . | . . . Shots Hit Robots 16 | . 5 11 Core Hits 6 | . 2 4 Critical Hits 1 | . 1 . Critical Kills . | . . . Critical Parts Destroyed 1 | . 1 . Melee Attacks . | . . . Impact . | . . . Slashing . | . . . Piercing . | . . . Sneak Attacks . | . . . Combat Hostiles . | . . . Follow-up Attacks . | . . . Damage Inflicted 379 | . 61 318 Guns 54 | . 21 33 Cannons 117 | . 36 81 Explosions 204 | . . 204 Melee . | . . . Ramming 4 | . 4 . Kinetic 151 | . 57 94 Thermal 116 | . . 116 Explosive 108 | . . 108 Electromagnetic . | . . . Impact . | . . . Slashing . | . . . Piercing . | . . . Highest Corruption 3 | . 3 3 Average Corruption 1 | . 1 3 Corruption Purged . | . . . Effects 2 | . 1 1 Heat Flow Errors 1 | . 1 . Data Loss (minor) 1 | . . 1 Overload Shots . | . . . Overflow Damage 15 | . . 15 Projectiles . | . . . Explosions 15 | . . 15 Melee . | . . . Knockbacks 4 | . 1 3 Impact . | . . . Kinetic 4 | . 1 3 Secondary . | . . . Self-Inflicted Damage 79 | . 2 77 Shots 3 | . . 3 Rammed 1 | . 1 . Targets Rammed 1 | . 1 . Kicked . | . . . Crushed . | . . . Highest Temperature 99 | . 99 34 Average Temperature 21 | . 54 11 Received Heat Transfer 156 | . 24 132 Siege Activations . | . . . Robots Corrupted . | . . . Combat Hostiles . | . . . Parts Fried . | . . . Impact Corruptions . | . . . Robots Melted . | . . . Combat Hostiles . | . . . Parts Melted . | . . . Heat Transferred 100 | . . 100 Parts Sabotaged . | . . . Parts Stolen . | . . . Parts Stripped . | . . . Power Chain Reactions . | . . . Missiles Intercepted . | . . . Alert | -11 -10 -9 ------- Run | Scr Mat Mat Peak Influence 198 | . 52 198 Average Influence 29 | . 23 91 Maximum Alert Level . | . . . Low Security (%) 100 | 100 100 100 Level 1 . | . . . Level 2 . | . . . Level 3 . | . . . Level 4 . | . . . Level 5 . | . . . High Security . | . . . Max Security . | . . . Squads Dispatched 3 | . 2 1 Investigation . | . . . Extermination . | . . . Reinforcement 3 | . 2 1 Assault . | . . . Garrison . | . . . Intercept . | . . . Construction Impeded . | . . . Haulers Reinforced . | . . . Stealth | -11 -10 -9 --------- Run | Scr Mat Mat Distress Signals 1 | . 1 . Communications Jammed . | . . . Distress Signals . | . . . Times Spotted 10 | . 4 6 Peak Tracking Total 3 | . 1 3 Tactical Retreats . | . . . Traps | -11 -10 -9 ------- Run | Scr Mat Mat Traps Triggered 3 | . 3 . Indirectly . | . . . Trap Hack Attempts . | . . . Triggered . | . . . Disarmed . | . . . Reprogrammed . | . . . Reused . | . . . Traps Extracted . | . . . Installed . | . . . Triggered . | . . . Machines | -11 -10 -9 ---------- Run | Scr Mat Mat Machines Disabled 6 | . . 6 Max in Single Turn 5 | . . 5 Machines Sabotaged . | . . . Garrisons Compromised . | . . . Overloaded Fab Kills . | . . . Fab Network Shutdowns . | . . . Hacking | -11 -10 -9 --------- Run | Scr Mat Mat Machines Accessed 1 | . 1 . Terminals 1 | . 1 . Fabricators . | . . . Repair Stations . | . . . Recycling Units . | . . . Scanalyzers . | . . . Garrison Access . | . . . Total Hacks 1 | . 1 . Successful 1 | . 1 . Failed . | . . . Catastrophic . | . . . Database Lockouts . | . . . Manual . | . . . Terminals 1 | . 1 . Fabricators . | . . . Repair Stations . | . . . Recycling Units . | . . . Scanalyzers . | . . . Garrison Access . | . . . Terminal Hacks 1 | . 1 . Record 1 | . 1 . Fabricator Hacks . | . . . Repair Station Hacks . | . . . Recycling Unit Hacks . | . . . Scanalyzer . | . . . Garrison Access Hacks . | . . . Unauthorized Hacks . | . . . Terminals . | . . . Fabricators . | . . . Repair Stations . | . . . Recycling Units . | . . . Scanalyzers . | . . . Garrison Access . | . . . Data Cores Recovered . | . . . Used . | . . . Hacking Detections . | . . . Full Trace Events . | . . . Feedback Events . | . . . Feedback Blocked . | . . . Robot Schematics Acquired . | . . . Robots Built . | . . . Matter . | . . . Time . | . . . Total Robot Build Rating . | . . . Part Schematics Acquired . | . . . Parts Built . | . . . Matter . | . . . Time . | . . . Total Part Build Rating . | . . . Parts Repaired . | . . . Time . | . . . Parts Recycled . | . . . Recycled Matter . | . . . Retrieved Matter . | . . . Retrieved Components . | . . . Parts Scanalyzed . | . . . Part Schematics Acquired . | . . . Parts Damaged . | . . . Bothacking | -11 -10 -9 ------------ Run | Scr Mat Mat Used RIF Installer . | . . . Robots Hacked . | . . . Non-combat . | . . . Combat . | . . . Robot Hacks Applied . | . . . Relay Couplers Released . | . . . Robots Rewired . | . . . Allies Hacked . | . . . Hacks Repelled . | . . . Allies | -11 -10 -9 -------- Run | Scr Mat Mat Total Allies . | . . . Largest Group . | . . . Highest-Rated Group . | . . . Highest-Rated Ally . | . . . Total Orders . | . . . Ally Attacks . | . . . Total Damage . | . . . Kills . | . . . Allies Corrupted . | . . . Allies Melted . | . . . Intel | -11 -10 -9 ------- Run | Scr Mat Mat Robot Analysis Total . | . . . Derelict Logs Recovered . | . . . Drone Launches . | . . . Drone Recoveries . | . . . Exploration | -11 -10 -9 ------------- Run | Scr Mat Mat Turns Passed 565 | 90 390 85 Spaces Moved 527 | 83 416 28 Core 21 | 21 . . Treads 1 | 1 . . Legs . | . . . Wheels 467 | 61 406 . Hover . | . . . Flight 38 | . 10 28 Fastest Speed 50 | 50 80 197 Average Speed 88 | 77 82 208 Slowest Speed 360 | 160 197 360 Overloaded Moves . | . . . Propulsion Burnouts . | . . . Robots Hopped . | . . . Cave-ins Triggered 1 | . . 1 Exploration Rate (%) 22 | 5 55 7 Regions Visited 2 Branch Regions . Pre-discovered Areas . | . . . Known Exits Taken . | . . . Unknown Exits Taken 2 | 1 1 . Scrap Searched . | . . . Spaces Dug . | . . . Terrain Destroyed 57 | . . 57 Melee . | . . . Projectile . | . . . AOE 57 | . . 57 Actions | -11 -10 -9 --------- Run | Scr Mat Mat Total 597 | 107 450 40 Wait 6 | 6 . . Move 525 | 82 415 28 Hop . | . . . Pick Up 17 | 7 10 . Fast Attach 6 | 5 1 . Attach 11 | 3 5 3 Detach . | . . . Swap 3 | . 2 1 Drop 11 | 4 7 . Fire 17 | . 9 8 Melee . | . . . Ram 1 | . 1 . Kick . | . . . Crush . | . . . Escape Stasis . | . . . Rewire . | . . . Trap . | . . . Miscellaneous . | . . . Route ------- -11/Scrapyard -10/Materials (discovered 3 exits: [*Mat x2] / [*Min]) -9/Materials History --------- Turn | Location | Event 9 | -11/Scrapyard | Discovered new exit (range 16) 91 | -11/Scrapyard | Entered Materials 277 | -10/Materials | Discovered new exit (range 5) 309 | -10/Materials | Build established: Mutant 365 | -10/Materials | Discovered new exit (range 14) 423 | -10/Materials | Discovered new exit (range 10) 481 | -10/Materials | Entered another Materials area 481 | -9/Materials | Evolved 2 slots: Propulsion x2 543 | -9/Materials | Crushed by falling debris 566 | -9/Materials | Self-destructed Last Messages --------------- 00537_ The unstable cave ceiling collapses. 00537_ U-05 Engineer builds a Wall. 00539_ U-05 Engineer destroyed. 00543_ The unstable cave ceiling collapses. 00543_ Crushed by falling debris. [Achievement: Unlikely Earthworm] 00543_ Flight Unit destroyed. 00543_ System corrupted by crushing effect (+2). 00543_ Heat Sink destroyed. 00543_ System corrupted by crushing effect (+1). 00551_ Grenade Launcher destroyed. 00552_ L-31 Rogue knocked back. 00559_ System corrupted: Component data lost. 00559_ The unstable cave ceiling collapses. 00563_ Flight Unit destroyed. 00563_ Sml. Laser destroyed. 00564_ Lgt. Assault Rifle destroyed. 00565_ R-06 Scavenger collects Lgt. Ion Engine. 00566_ Lgt. Cannon destroyed. 00566_ Ion Engine destroyed. Map ----- +----------------------------------------------------+ | ?????????????????????????????????????? | | ?????????????????????????????????????? | | ???????????? ????????????????????????? | | ???????????? ? ##????????????????????? | | ???????????? ##???????????????????? | | ???????????? ????????????????????? | | ???????????? T ????????????????????? | | ???????????? ?????????????????????? | | ???????????? ?????????????????????? | | ???????????# #?????????????????????? | | ???????????# #?????????????????????? | | ???????????# #?????????????????????? | | ???????????# #?????????????????????? | | ???????????# #?????????????????????? | | ???????????# #?????????????????????? | | ???????##### #?????????????????????? | | ???????# #?????????????????????? | | ???????# #?????????????????????? | | ???????# #?????????????????????? | | ??????#####+#####????????????????????? | | ??????# #????????????????????? | | ??????# #????#???????????????? | | ??????# #??? #???????????????? | | ??????# #?? #???????????????? | | ??????# """ #? ! #???????????????? | | ??????# " " @r #! +???????????????? | | ??????# l ! #???????????????? | | ??????# |% #???????????????? | | ?????#;;; # = ###???????????????? | | ????# ; ! #???????????????? | | ????# ; #???????????????? | | ????##; ;;#??????????????? | | ????# ; gg #????????????? | | ????# ; ;;# #????????????? | | ????##; ; #?#????????????? | | ?????#;; # ;;;#??????????????? | | ????? ; "##??????????????? | | ????"" "" ; "Y!#???????????????? | | ???""" "R" + ]???????????????? | | ????""?? " # ? ??????????????? | | ????????? #" != ?? ??????????????? | | ????????? ?" ]= ?????????????????? | | ?????????#??? ] ???????????????????? | | ????????????? ?????????????????????? | | ?????????????????????????????????????? | | ?????????????????????????????????????? | | ?????????????????????????????????????? | | ?????????????????????????????????????? | | ?????????????????????????????????????? | | ?????????????????????????????????????? | +----------------------------------------------------+ Best States ------------- Heat Dissipation 38 Energy Generation 10 Energy Capacity 250 Matter Stores 300 Matter Capacity 300 Sight Range 16 Terrain Scan Density 10 Evasion (%) 50 Recoil Reduction 1 Item Schematics ----------------- None Robot Schematics ------------------ None Fabricated ------------ Nothing Alien Tech Used ----------------- None Achievements -------------- Unlikely Earthworm Challenges ------------ None Game ------ Seed LobotomyImprovedPenetrator Manual? 0 Play Time 00:27:17 Cumulative 2.8 hours Start 2020.01.27 @ 03:56:45 End 2020.01.27 @ 14:11:29 Sessions 1 Manual Loads 0 Difficulty Rogue Special Mode None Game No. 25 Rogue 25 Adventurer 0 Explorer 0 Win Type - Total 0 Types 0/0/0/0/0/0/0 Lore% 0 Gallery% 11 Achievement% 2 Wizard Run 0 Options --------- ASCII 0 Keyboard 0 Movement Arrows Keybinds 0 Fullscreen 1 Font 18/SmallcapsGlow Map View 76x50 Tactical HUD 1 Map Filters NONE Filters NONE Steam 1 RUN: e765dbd8-a8c7-4eea-9635-9f3c9d6b53eb